[Event "November 21 Early 2023"]
[Site "https://www.chess.com"]
[Date "2023.11.21"]
[Round "2"]
[White "Sadykov, Ramil"]
[Black "Osmonbekov, Talaibek"]
[Result "1-0"]
[Board "116"]
[TimeControl "180+1"]
[WhiteFideId "24113590"]
[BlackFideId "2017253"]
[WhiteElo "2245"]
[BlackElo "2135"]
[WhiteTeam "FID"]
[BlackTeam "USA"]
[WhiteClock "0:00:03"]
[BlackClock "0:00:00"]

1. e4 {[%clk 0:02:49]}  c5 {[%clk 0:02:59]} 2. Nf3 {[%clk 0:02:48]}  d6 {[%clk 0:03:00]} 3. d4 {[%clk 0:02:47]}  cxd4 {[%clk 0:03:01]} 4. Nxd4 {[%clk 0:02:47]}  Nf6 {[%clk 0:03:01]} 5. f3 {[%clk 0:02:48]}  g6 {[%clk 0:03:02]} 6. c4 {[%clk 0:02:48]}  Nc6 {[%clk 0:02:56]} 7. Nc3 {[%clk 0:02:47]}  Nxd4 {[%clk 0:02:49]} 8. Qxd4 {[%clk 0:02:48]}  Bg7 {[%clk 0:02:49]} 9. Be3 {[%clk 0:02:45]}  O-O {[%clk 0:02:48]} 10. Qd2 {[%clk 0:02:46]}  Be6 {[%clk 0:02:43]} 11. Rc1 {[%clk 0:02:44]}  Rc8 {[%clk 0:02:41]} 12. b3 {[%clk 0:02:42]}  Re8 {[%clk 0:02:40]} 13. Be2 {[%clk 0:02:41]}  a6 {[%clk 0:02:33]} 14. O-O {[%clk 0:02:38]}  h5 {[%clk 0:02:34]} 15. Rfd1 {[%clk 0:02:34]}  Qa5 {[%clk 0:02:25]} 16. a4 {[%clk 0:02:11]}  Bd7 {[%clk 0:02:15]} 17. Bf1 {[%clk 0:01:58]}  Qb4 {[%clk 0:02:13]} 18. Qb2 {[%clk 0:01:37]}  b5 {[%clk 0:02:03]} 19. Na2 {[%clk 0:01:12]}  Qa5 {[%clk 0:02:02]} 20. b4 {[%clk 0:00:53]}  Qd8 {[%clk 0:01:42]} 21. cxb5 {[%clk 0:00:46]}  axb5 {[%clk 0:01:35]} 22. a5 {[%clk 0:00:46]}  Nxe4 {[%clk 0:01:27]} 23. Bd4 {[%clk 0:00:13]}  Rxc1 {[%clk 0:01:23]} 24. Rxc1 {[%clk 0:00:12]}  Bxd4+ {[%clk 0:01:09]} 25. Qxd4 {[%clk 0:00:13]}  Nf6 {[%clk 0:01:10]} 26. Nc3 {[%clk 0:00:13]}  Qb8 {[%clk 0:01:07]} 27. a6 {[%clk 0:00:09]}  Rc8 {[%clk 0:01:06]} 28. a7 {[%clk 0:00:08]}  Qb7 {[%clk 0:01:06]} 29. Ra1 {[%clk 0:00:08]}  Ra8 {[%clk 0:00:59]} 30. Ra5 {[%clk 0:00:08]}  h4 {[%clk 0:00:47]} 31. h3 {[%clk 0:00:08]}  Nh5 {[%clk 0:00:44]} 32. Bxb5 {[%clk 0:00:05]}  Bxb5 {[%clk 0:00:38]} 33. Nxb5 {[%clk 0:00:06]}  Ng3 {[%clk 0:00:35]} 34. Kh2 {[%clk 0:00:03]}  Nf1+ {[%clk 0:00:34]} 35. Kg1 {[%clk 0:00:03]}  Ng3 {[%clk 0:00:35]} 36. Kf2 {[%clk 0:00:02]}  Nf5 {[%clk 0:00:32]} 37. Qc3 {[%clk 0:00:02]}  Qb6+ {[%clk 0:00:32]} 38. Ke1 {[%clk 0:00:02]}  Qg1+ {[%clk 0:00:31]} 39. Kd2 {[%clk 0:00:02]}  Qxg2+ {[%clk 0:00:30]} 40. Kc1 {[%clk 0:00:02]}  Qf1+ {[%clk 0:00:27]} 41. Kb2 {[%clk 0:00:02]}  Qxh3 {[%clk 0:00:26]} 42. Qc6 {[%clk 0:00:02]}  Qg2+ {[%clk 0:00:25]} 43. Ka3 {[%clk 0:00:02]}  Rxa7 {[%clk 0:00:23]} 44. Rxa7 {[%clk 0:00:02]}  h3 {[%clk 0:00:23]} 45. Ra8+ {[%clk 0:00:02]}  Kg7 {[%clk 0:00:22]} 46. Qc3+ {[%clk 0:00:02]}  e5 {[%clk 0:00:20]} 47. Nxd6 {[%clk 0:00:02]}  Qg3 {[%clk 0:00:15]} 48. Nxf5+ {[%clk 0:00:01]}  gxf5 {[%clk 0:00:14]} 49. Re8 {[%clk 0:00:02]}  h2 {[%clk 0:00:13]} 50. Rxe5 {[%clk 0:00:02]}  h1=Q {[%clk 0:00:10]} 51. Re1+ {[%clk 0:00:02]}  Kg6 {[%clk 0:00:05]} 52. Rxh1 {[%clk 0:00:02]}  Qg2 {[%clk 0:00:03]} 53. Rb1 {[%clk 0:00:03]}  f6 {[%clk 0:00:00]} 54. Rb2 {[%clk 0:00:03]} 1-0

[Event "November 21 Early 2023"]
[Site "https://www.chess.com"]
[Date "2023.11.21"]
[Round "2"]
[White "Ovetchkin, Roman"]
[Black "Mangialardo, Tiago Carvalho"]
[Result "1-0"]
[Board "117"]
[TimeControl "180+1"]
[WhiteFideId "4119991"]
[BlackFideId "2130718"]
[WhiteElo "2381"]
[BlackElo "2155"]
[WhiteTeam "RUS"]
[BlackTeam "BRA"]
[WhiteClock "0:02:29"]
[BlackClock "0:00:44"]

1. d4 {[%clk 0:03:00]}  Nf6 {[%clk 0:02:58]} 2. c4 {[%clk 0:03:00]}  c5 {[%clk 0:02:58]} 3. d5 {[%clk 0:03:00]}  g6 {[%clk 0:02:55]} 4. Nc3 {[%clk 0:02:59]}  Bg7 {[%clk 0:02:53]} 5. e4 {[%clk 0:03:00]}  d6 {[%clk 0:02:53]} 6. h3 {[%clk 0:02:59]}  O-O {[%clk 0:02:53]} 7. Nf3 {[%clk 0:02:59]}  e6 {[%clk 0:02:47]} 8. Bd3 {[%clk 0:02:59]}  e5 {[%clk 0:02:48]} 9. g4 {[%clk 0:02:50]}  a6 {[%clk 0:02:32]} 10. a4 {[%clk 0:02:49]}  h5 {[%clk 0:02:12]} 11. Ng5 {[%clk 0:02:43]}  hxg4 {[%clk 0:02:05]} 12. hxg4 {[%clk 0:02:43]}  Bxg4 {[%clk 0:02:06]} 13. Be2 {[%clk 0:02:40]}  Bxe2 {[%clk 0:01:55]} 14. Qxe2 {[%clk 0:02:39]}  Nh5 {[%clk 0:01:56]} 15. Rxh5 {[%clk 0:02:39]}  gxh5 {[%clk 0:01:51]} 16. Qxh5 {[%clk 0:02:40]}  Qxg5 {[%clk 0:00:55]} 17. Bxg5 {[%clk 0:02:36]}  f6 {[%clk 0:00:46]} 18. Bh6 {[%clk 0:02:30]}  Bxh6 {[%clk 0:00:45]} 19. Qxh6 {[%clk 0:02:30]}  Rf7 {[%clk 0:00:46]} 20. Ke2 {[%clk 0:02:30]}  Nd7 {[%clk 0:00:44]} 21. Rg1+ {[%clk 0:02:29]} 1-0

[Event "November 21 Early 2023"]
[Site "https://www.chess.com"]
[Date "2023.11.21"]
[Round "2"]
[White "FrenchHarvey"]
[Black "Petersson, Kjell"]
[Result "1-0"]
[Board "118"]
[TimeControl "180+1"]
[BlackFideId "1705148"]
[WhiteElo "2674"]
[BlackElo "1994"]
[BlackTeam "SWE"]
[WhiteClock "0:01:23"]
[BlackClock "0:00:07"]

1. e4 {[%clk 0:02:59]}  c5 {[%clk 0:02:59]} 2. Nc3 {[%clk 0:02:58]}  g6 {[%clk 0:02:58]} 3. Nf3 {[%clk 0:02:58]}  Bg7 {[%clk 0:02:58]} 4. Bc4 {[%clk 0:02:59]}  Nc6 {[%clk 0:02:57]} 5. O-O {[%clk 0:03:00]}  e6 {[%clk 0:02:57]} 6. d4 {[%clk 0:03:00]}  cxd4 {[%clk 0:02:56]} 7. Nb5 {[%clk 0:03:00]}  d6 {[%clk 0:02:37]} 8. Nbxd4 {[%clk 0:02:53]}  Nge7 {[%clk 0:02:32]} 9. Nb5 {[%clk 0:02:53]}  O-O {[%clk 0:02:20]} 10. Nxd6 {[%clk 0:02:52]}  b6 {[%clk 0:02:08]} 11. Bg5 {[%clk 0:02:44]}  h6 {[%clk 0:02:01]} 12. Bh4 {[%clk 0:02:36]}  Bxb2 {[%clk 0:01:57]} 13. Rb1 {[%clk 0:02:26]}  Bg7 {[%clk 0:01:58]} 14. Nxc8 {[%clk 0:02:23]}  Rxc8 {[%clk 0:01:55]} 15. Bg3 {[%clk 0:02:20]}  Qxd1 {[%clk 0:01:49]} 16. Rfxd1 {[%clk 0:02:17]}  Rfd8 {[%clk 0:01:50]} 17. Ba6 {[%clk 0:02:15]}  Rxd1+ {[%clk 0:01:47]} 18. Rxd1 {[%clk 0:02:16]}  Rd8 {[%clk 0:01:47]} 19. Rxd8+ {[%clk 0:02:10]}  Nxd8 {[%clk 0:01:47]} 20. Bd6 {[%clk 0:02:08]}  Nec6 {[%clk 0:01:45]} 21. Kf1 {[%clk 0:02:00]}  Bc3 {[%clk 0:01:34]} 22. a3 {[%clk 0:01:53]}  Kg7 {[%clk 0:01:28]} 23. Ke2 {[%clk 0:01:53]}  g5 {[%clk 0:01:21]} 24. Kd3 {[%clk 0:01:53]}  Bb2 {[%clk 0:01:20]} 25. c3 {[%clk 0:01:50]}  Bc1 {[%clk 0:01:16]} 26. g3 {[%clk 0:01:50]}  g4 {[%clk 0:00:48]} 27. Ne5 {[%clk 0:01:49]}  Nxe5+ {[%clk 0:00:46]} 28. Bxe5+ {[%clk 0:01:49]}  f6 {[%clk 0:00:46]} 29. Bd6 {[%clk 0:01:37]}  Bg5 {[%clk 0:00:39]} 30. Bb5 {[%clk 0:01:37]}  f5 {[%clk 0:00:36]} 31. Bb8 {[%clk 0:01:36]}  fxe4+ {[%clk 0:00:24]} 32. Kxe4 {[%clk 0:01:37]}  Nf7 {[%clk 0:00:24]} 33. Bc4 {[%clk 0:01:31]}  Kf6 {[%clk 0:00:22]} 34. Bxa7 {[%clk 0:01:30]}  Nd6+ {[%clk 0:00:21]} 35. Kd3 {[%clk 0:01:31]}  Bc1 {[%clk 0:00:20]} 36. a4 {[%clk 0:01:29]}  Ba3 {[%clk 0:00:19]} 37. Bxb6 {[%clk 0:01:28]}  e5 {[%clk 0:00:18]} 38. Bd5 {[%clk 0:01:28]}  h5 {[%clk 0:00:16]} 39. a5 {[%clk 0:01:28]}  Nb5 {[%clk 0:00:14]} 40. a6 {[%clk 0:01:27]}  Bd6 {[%clk 0:00:10]} 41. a7 {[%clk 0:01:24]}  Nxa7 {[%clk 0:00:10]} 42. Bxa7 {[%clk 0:01:25]}  h4 {[%clk 0:00:07]} 43. gxh4 {[%clk 0:01:23]} 1-0

[Event "November 21 Early 2023"]
[Site "https://www.chess.com"]
[Date "2023.11.21"]
[Round "2"]
[White "Cherniaiev, Tykhon"]
[Black "aghasiyevkamal"]
[Result "1-0"]
[Board "120"]
[TimeControl "180+1"]
[WhiteFideId "14182360"]
[WhiteElo "2438"]
[BlackElo "2541"]
[WhiteTeam "UKR"]
[WhiteClock "0:00:06"]
[BlackClock "0:00:00"]

1. Nf3 {[%clk 0:03:00]}  d5 {[%clk 0:02:58]} 2. d4 {[%clk 0:03:01]}  Nf6 {[%clk 0:02:58]} 3. c4 {[%clk 0:03:02]}  e6 {[%clk 0:02:57]} 4. Nc3 {[%clk 0:03:02]}  Be7 {[%clk 0:02:57]} 5. Bg5 {[%clk 0:03:02]}  Nbd7 {[%clk 0:02:55]} 6. cxd5 {[%clk 0:03:02]}  exd5 {[%clk 0:02:53]} 7. e3 {[%clk 0:03:02]}  c6 {[%clk 0:02:53]} 8. Bd3 {[%clk 0:03:03]}  h6 {[%clk 0:02:53]} 9. Bh4 {[%clk 0:03:03]}  Nh5 {[%clk 0:02:53]} 10. Bxe7 {[%clk 0:03:03]}  Qxe7 {[%clk 0:02:53]} 11. O-O {[%clk 0:03:03]}  O-O {[%clk 0:02:52]} 12. Qc2 {[%clk 0:02:46]}  Nhf6 {[%clk 0:02:51]} 13. Rae1 {[%clk 0:02:43]}  Nb6 {[%clk 0:02:41]} 14. Ne5 {[%clk 0:02:42]}  Ng4 {[%clk 0:02:36]} 15. Nxg4 {[%clk 0:02:39]}  Bxg4 {[%clk 0:02:35]} 16. f3 {[%clk 0:02:39]}  Be6 {[%clk 0:02:33]} 17. e4 {[%clk 0:02:40]}  dxe4 {[%clk 0:02:21]} 18. fxe4 {[%clk 0:02:34]}  Rad8 {[%clk 0:02:20]} 19. Ne2 {[%clk 0:02:27]}  Qg5 {[%clk 0:02:08]} 20. Rf3 {[%clk 0:02:14]}  Bg4 {[%clk 0:01:59]} 21. Rg3 {[%clk 0:02:13]}  Qa5 {[%clk 0:01:58]} 22. Nc3 {[%clk 0:01:55]}  Be6 {[%clk 0:01:44]} 23. Qf2 {[%clk 0:01:54]}  Qb4 {[%clk 0:01:38]} 24. d5 {[%clk 0:01:46]}  f5 {[%clk 0:00:56]} 25. dxe6 {[%clk 0:01:23]}  fxe4 {[%clk 0:00:56]} 26. e7 {[%clk 0:01:23]}  Qxe7 {[%clk 0:00:55]} 27. Qe3 {[%clk 0:01:23]}  Nd5 {[%clk 0:00:19]} 28. Qxe4 {[%clk 0:01:15]}  Qc5+ {[%clk 0:00:19]} 29. Kh1 {[%clk 0:01:14]}  Nf6 {[%clk 0:00:19]} 30. Qc4+ {[%clk 0:01:12]}  Qxc4 {[%clk 0:00:19]} 31. Bxc4+ {[%clk 0:01:13]}  Kh8 {[%clk 0:00:18]} 32. Rd3 {[%clk 0:01:14]}  b5 {[%clk 0:00:17]} 33. Rxd8 {[%clk 0:01:07]}  Rxd8 {[%clk 0:00:17]} 34. Bb3 {[%clk 0:01:04]}  a5 {[%clk 0:00:16]} 35. a3 {[%clk 0:00:46]}  Rd2 {[%clk 0:00:14]} 36. Re2 {[%clk 0:00:44]}  Rd4 {[%clk 0:00:14]} 37. h3 {[%clk 0:00:41]}  Kh7 {[%clk 0:00:13]} 38. Kh2 {[%clk 0:00:39]}  Kg6 {[%clk 0:00:12]} 39. Bc2+ {[%clk 0:00:39]}  Kf7 {[%clk 0:00:11]} 40. Ne4 {[%clk 0:00:40]}  Nd5 {[%clk 0:00:08]} 41. Nd6+ {[%clk 0:00:40]}  Kf6 {[%clk 0:00:08]} 42. Rf2+ {[%clk 0:00:31]}  Rf4 {[%clk 0:00:07]} 43. Rxf4+ {[%clk 0:00:25]}  Nxf4 {[%clk 0:00:08]} 44. Nb7 {[%clk 0:00:24]}  a4 {[%clk 0:00:08]} 45. Na5 {[%clk 0:00:21]}  c5 {[%clk 0:00:07]} 46. Nb7 {[%clk 0:00:21]}  Ne6 {[%clk 0:00:06]} 47. Nd6 {[%clk 0:00:20]}  b4 {[%clk 0:00:06]} 48. axb4 {[%clk 0:00:18]}  cxb4 {[%clk 0:00:05]} 49. Bxa4 {[%clk 0:00:19]}  Ke5 {[%clk 0:00:05]} 50. Nf7+ {[%clk 0:00:18]}  Kd4 {[%clk 0:00:05]} 51. Nd6 {[%clk 0:00:14]}  Nc5 {[%clk 0:00:04]} 52. Bd1 {[%clk 0:00:11]}  Kd3 {[%clk 0:00:04]} 53. Nf5 {[%clk 0:00:10]}  g5 {[%clk 0:00:03]} 54. Nxh6 {[%clk 0:00:09]}  Kd2 {[%clk 0:00:04]} 55. Bf3 {[%clk 0:00:08]}  Kc2 {[%clk 0:00:04]} 56. Nf7 {[%clk 0:00:08]}  Kxb2 {[%clk 0:00:04]} 57. Nxg5 {[%clk 0:00:09]}  Kc2 {[%clk 0:00:03]} 58. Ne4 {[%clk 0:00:09]}  Nd3 {[%clk 0:00:00]} 59. Be2 {[%clk 0:00:06]} 1-0

[Event "November 21 Early 2023"]
[Site "https://www.chess.com"]
[Date "2023.11.21"]
[Round "2"]
[White "robertoalejandro10"]
[Black "Aradhya, Garg"]
[Result "1-0"]
[Board "121"]
[TimeControl "180+1"]
[BlackFideId "25006746"]
[WhiteElo "2466"]
[BlackElo "2323"]
[BlackTeam "IND"]
[WhiteClock "0:00:42"]
[BlackClock "0:00:17"]

1. Nf3 {[%clk 0:03:00]}  Nf6 {[%clk 0:02:58]} 2. b3 {[%clk 0:03:00]}  g6 {[%clk 0:02:58]} 3. Bb2 {[%clk 0:03:00]}  Bg7 {[%clk 0:02:59]} 4. c4 {[%clk 0:03:00]}  O-O {[%clk 0:02:59]} 5. g3 {[%clk 0:03:00]}  b6 {[%clk 0:02:59]} 6. Bg2 {[%clk 0:03:00]}  Bb7 {[%clk 0:03:00]} 7. O-O {[%clk 0:03:01]}  c5 {[%clk 0:03:00]} 8. Nc3 {[%clk 0:03:01]}  d5 {[%clk 0:02:59]} 9. cxd5 {[%clk 0:03:02]}  Nxd5 {[%clk 0:02:59]} 10. Rc1 {[%clk 0:03:02]}  Nxc3 {[%clk 0:02:48]} 11. Bxc3 {[%clk 0:03:03]}  Nc6 {[%clk 0:02:47]} 12. Bxg7 {[%clk 0:02:43]}  Kxg7 {[%clk 0:02:48]} 13. Ne5 {[%clk 0:02:23]}  Qd6 {[%clk 0:02:40]} 14. Nxc6 {[%clk 0:02:23]}  Bxc6 {[%clk 0:02:40]} 15. Bxc6 {[%clk 0:02:21]}  Qxc6 {[%clk 0:02:41]} 16. Qc2 {[%clk 0:02:14]}  Rfd8 {[%clk 0:02:39]} 17. b4 {[%clk 0:02:12]}  c4 {[%clk 0:02:38]} 18. d3 {[%clk 0:02:10]}  b5 {[%clk 0:02:37]} 19. dxc4 {[%clk 0:02:09]}  bxc4 {[%clk 0:02:37]} 20. Qxc4 {[%clk 0:01:56]}  Qxc4 {[%clk 0:02:37]} 21. Rxc4 {[%clk 0:01:57]}  Rd2 {[%clk 0:02:37]} 22. Re4 {[%clk 0:01:58]}  e6 {[%clk 0:02:32]} 23. a4 {[%clk 0:01:54]}  Rc8 {[%clk 0:02:33]} 24. Rb1 {[%clk 0:01:47]}  Rcc2 {[%clk 0:02:27]} 25. b5 {[%clk 0:01:43]}  Rxe2 {[%clk 0:02:22]} 26. Rxe2 {[%clk 0:01:44]}  Rxe2 {[%clk 0:02:23]} 27. a5 {[%clk 0:01:44]}  Rd2 {[%clk 0:02:23]} 28. b6 {[%clk 0:01:44]}  axb6 {[%clk 0:02:23]} 29. axb6 {[%clk 0:01:45]}  Rd8 {[%clk 0:02:23]} 30. b7 {[%clk 0:01:41]}  Rb8 {[%clk 0:02:23]} 31. Kg2 {[%clk 0:01:41]}  Kf6 {[%clk 0:02:23]} 32. Kf3 {[%clk 0:01:41]}  Ke7 {[%clk 0:02:24]} 33. Kf4 {[%clk 0:01:41]}  h6 {[%clk 0:02:21]} 34. g4 {[%clk 0:01:40]}  Kd6 {[%clk 0:02:20]} 35. g5 {[%clk 0:01:38]}  e5+ {[%clk 0:02:15]} 36. Kg4 {[%clk 0:01:36]}  h5+ {[%clk 0:02:15]} 37. Kf3 {[%clk 0:01:34]}  Kd5 {[%clk 0:00:26]} 38. Ke3 {[%clk 0:01:13]}  e4 {[%clk 0:00:26]} 39. h4 {[%clk 0:01:08]}  f5 {[%clk 0:00:21]} 40. gxf6 {[%clk 0:01:06]}  Ke6 {[%clk 0:00:22]} 41. Rb6+ {[%clk 0:01:06]}  Kf7 {[%clk 0:00:21]} 42. Kxe4 {[%clk 0:01:06]}  g5 {[%clk 0:00:22]} 43. hxg5 {[%clk 0:01:06]}  Kg6 {[%clk 0:00:23]} 44. Kf4 {[%clk 0:01:05]}  h4 {[%clk 0:00:17]} 45. Kg4 {[%clk 0:01:02]}  h3 {[%clk 0:00:18]} 46. Kxh3 {[%clk 0:00:42]}  Kxg5 {[%clk 0:00:17]} 47. f7 {[%clk 0:00:43]}  Kf5 {[%clk 0:00:17]} 48. f8=Q+ {[%clk 0:00:42]}  Rxf8 {[%clk 0:00:17]} 49. b8=Q {[%clk 0:00:42]}  Rxb8 {[%clk 0:00:17]} 50. Rxb8 {[%clk 0:00:42]} 1-0

[Event "November 21 Early 2023"]
[Site "https://www.chess.com"]
[Date "2023.11.21"]
[Round "2"]
[White "Kubatko, Ivan"]
[Black "Asavasaetakul, Chawit"]
[Result "0-1"]
[Board "122"]
[TimeControl "180+1"]
[WhiteFideId "24111473"]
[BlackFideId "6204856"]
[WhiteElo "2285"]
[BlackElo "1919"]
[WhiteTeam "RUS"]
[BlackTeam "THA"]
[WhiteClock "0:00:00"]
[BlackClock "0:00:28"]

1. e4 {[%clk 0:03:00]}  d5 {[%clk 0:02:54]} 2. exd5 {[%clk 0:03:00]}  Nf6 {[%clk 0:02:54]} 3. c4 {[%clk 0:02:57]}  c6 {[%clk 0:02:53]} 4. d4 {[%clk 0:02:57]}  cxd5 {[%clk 0:02:53]} 5. Nc3 {[%clk 0:02:57]}  Nc6 {[%clk 0:02:54]} 6. Bg5 {[%clk 0:02:56]}  e6 {[%clk 0:02:50]} 7. cxd5 {[%clk 0:02:50]}  exd5 {[%clk 0:02:50]} 8. Nf3 {[%clk 0:02:37]}  Be7 {[%clk 0:02:45]} 9. h3 {[%clk 0:02:36]}  O-O {[%clk 0:02:45]} 10. Bd3 {[%clk 0:02:33]}  h6 {[%clk 0:02:45]} 11. Be3 {[%clk 0:02:17]}  Re8 {[%clk 0:02:43]} 12. O-O {[%clk 0:02:16]}  Bd6 {[%clk 0:02:38]} 13. a3 {[%clk 0:02:11]}  Be6 {[%clk 0:02:37]} 14. b4 {[%clk 0:02:08]}  Rc8 {[%clk 0:02:34]} 15. Rc1 {[%clk 0:02:08]}  Qd7 {[%clk 0:02:24]} 16. Re1 {[%clk 0:01:57]}  Bf5 {[%clk 0:02:16]} 17. Bf1 {[%clk 0:01:48]}  Bb8 {[%clk 0:02:13]} 18. Na4 {[%clk 0:01:43]}  Ne4 {[%clk 0:02:03]} 19. Nc5 {[%clk 0:01:25]}  Qe7 {[%clk 0:01:56]} 20. Qb3 {[%clk 0:00:57]}  b6 {[%clk 0:01:49]} 21. Qxd5 {[%clk 0:00:44]}  Bg6 {[%clk 0:01:28]} 22. Na6 {[%clk 0:00:31]}  Nf6 {[%clk 0:01:18]} 23. Qb3 {[%clk 0:00:25]}  Bd6 {[%clk 0:01:13]} 24. Bb5 {[%clk 0:00:24]}  Be4 {[%clk 0:01:09]} 25. Nd2 {[%clk 0:00:22]}  Bd5 {[%clk 0:01:09]} 26. Qa4 {[%clk 0:00:22]}  Qb7 {[%clk 0:01:03]} 27. Nc4 {[%clk 0:00:15]}  Bf8 {[%clk 0:00:59]} 28. Nd2 {[%clk 0:00:06]}  Red8 {[%clk 0:00:59]} 29. f3 {[%clk 0:00:05]}  Ne7 {[%clk 0:00:51]} 30. Nf1 {[%clk 0:00:02]}  Nf5 {[%clk 0:00:50]} 31. Rxc8 {[%clk 0:00:02]}  Rxc8 {[%clk 0:00:50]} 32. Bf2 {[%clk 0:00:02]}  Nd6 {[%clk 0:00:46]} 33. Bd3 {[%clk 0:00:02]}  Nh5 {[%clk 0:00:37]} 34. b5 {[%clk 0:00:02]}  Nf4 {[%clk 0:00:37]} 35. Bc2 {[%clk 0:00:02]}  Bxf3 {[%clk 0:00:36]} 36. Ne3 {[%clk 0:00:01]}  Bxg2 {[%clk 0:00:34]} 37. d5 {[%clk 0:00:00]}  Bxd5 {[%clk 0:00:28]} 0-1

[Event "November 21 Early 2023"]
[Site "https://www.chess.com"]
[Date "2023.11.21"]
[Round "2"]
[White "Silvestre, Christian"]
[Black "Dobrikov, Marco"]
[Result "0-1"]
[Board "124"]
[TimeControl "180+1"]
[WhiteFideId "30956269"]
[BlackFideId "12950378"]
[WhiteElo "2332"]
[BlackElo "2394"]
[WhiteTeam "USA"]
[BlackTeam "GER"]
[WhiteClock "0:00:11"]
[BlackClock "0:02:11"]

1. e4 {[%clk 0:02:59]}  g6 {[%clk 0:03:00]} 2. Nc3 {[%clk 0:02:58]}  Bg7 {[%clk 0:03:01]} 3. Nf3 {[%clk 0:02:57]}  d6 {[%clk 0:03:01]} 4. d4 {[%clk 0:02:57]}  Nf6 {[%clk 0:03:00]} 5. Be3 {[%clk 0:02:57]}  O-O {[%clk 0:03:01]} 6. h3 {[%clk 0:02:57]}  Nfd7 {[%clk 0:03:01]} 7. Qd2 {[%clk 0:02:55]}  e5 {[%clk 0:03:01]} 8. O-O-O {[%clk 0:02:55]}  Nc6 {[%clk 0:03:02]} 9. Kb1 {[%clk 0:02:53]}  a6 {[%clk 0:03:02]} 10. g4 {[%clk 0:02:51]}  b5 {[%clk 0:03:03]} 11. Bg2 {[%clk 0:02:50]}  b4 {[%clk 0:03:03]} 12. Nd5 {[%clk 0:02:48]}  a5 {[%clk 0:03:04]} 13. dxe5 {[%clk 0:02:42]}  Ncxe5 {[%clk 0:02:59]} 14. Nxe5 {[%clk 0:02:41]}  Nxe5 {[%clk 0:02:58]} 15. Bg5 {[%clk 0:02:24]}  f6 {[%clk 0:02:55]} 16. Bf4 {[%clk 0:02:10]}  Nc4 {[%clk 0:02:55]} 17. Qc1 {[%clk 0:01:59]}  f5 {[%clk 0:02:55]} 18. c3 {[%clk 0:01:46]}  bxc3 {[%clk 0:02:54]} 19. b3 {[%clk 0:01:33]}  Rb8 {[%clk 0:02:54]} 20. Nxc3 {[%clk 0:01:32]}  Be6 {[%clk 0:02:34]} 21. Kc2 {[%clk 0:01:30]}  Qf6 {[%clk 0:02:33]} 22. Rd3 {[%clk 0:01:15]}  fxe4 {[%clk 0:02:25]} 23. Nxe4 {[%clk 0:00:52]}  Qxf4 {[%clk 0:02:22]} 24. bxc4 {[%clk 0:00:48]}  Bxc4 {[%clk 0:02:23]} 25. Qxf4 {[%clk 0:00:38]}  Bxd3+ {[%clk 0:02:22]} 26. Kxd3 {[%clk 0:00:39]}  Rxf4 {[%clk 0:02:23]} 27. Rc1 {[%clk 0:00:23]}  Rb2 {[%clk 0:02:21]} 28. Rxc7 {[%clk 0:00:20]}  h6 {[%clk 0:02:21]} 29. Rc8+ {[%clk 0:00:20]}  Kh7 {[%clk 0:02:21]} 30. Rc7 {[%clk 0:00:20]}  Rxa2 {[%clk 0:02:19]} 31. h4 {[%clk 0:00:17]}  d5 {[%clk 0:02:17]} 32. Ng3 {[%clk 0:00:14]}  Raxf2 {[%clk 0:02:15]} 33. Bxd5 {[%clk 0:00:14]}  Rxg4 {[%clk 0:02:16]} 34. Ne4 {[%clk 0:00:13]}  Rf5 {[%clk 0:02:11]} 35. Rc8 {[%clk 0:00:11]}  Rxd5+ {[%clk 0:02:10]} 36. Kc4 {[%clk 0:00:12]}  Rxe4+ {[%clk 0:02:10]} 37. Kxd5 {[%clk 0:00:11]}  Rxh4 {[%clk 0:02:11]} 38. Ra8 {[%clk 0:00:11]}  Rf4 {[%clk 0:02:10]} 39. Ke6 {[%clk 0:00:12]}  Rf5 {[%clk 0:02:10]} 40. Ke7 {[%clk 0:00:13]}  h5 {[%clk 0:02:11]} 41. Ra6 {[%clk 0:00:14]}  h4 {[%clk 0:02:11]} 42. Ke8 {[%clk 0:00:11]}  h3 {[%clk 0:02:11]} 0-1

[Event "November 21 Early 2023"]
[Site "https://www.chess.com"]
[Date "2023.11.21"]
[Round "2"]
[White "Bodnaruk, Anastasia"]
[Black "Mejia, Cherry Ann"]
[Result "1-0"]
[Board "125"]
[TimeControl "180+1"]
[WhiteFideId "4181751"]
[BlackFideId "5206880"]
[WhiteElo "2260"]
[BlackElo "2009"]
[WhiteTeam "RUS"]
[BlackTeam "PHI"]
[WhiteClock "0:00:50"]
[BlackClock "0:00:25"]

1. e4 {[%clk 0:03:00]}  c5 {[%clk 0:02:59]} 2. Nc3 {[%clk 0:03:00]}  a6 {[%clk 0:02:59]} 3. g3 {[%clk 0:02:59]}  b5 {[%clk 0:03:00]} 4. Bg2 {[%clk 0:02:59]}  Bb7 {[%clk 0:03:00]} 5. Nge2 {[%clk 0:02:57]}  e6 {[%clk 0:03:00]} 6. d4 {[%clk 0:02:57]}  cxd4 {[%clk 0:03:00]} 7. Nxd4 {[%clk 0:02:57]}  Qc7 {[%clk 0:03:00]} 8. O-O {[%clk 0:02:57]}  Nf6 {[%clk 0:03:00]} 9. Re1 {[%clk 0:02:57]}  d6 {[%clk 0:03:00]} 10. Nd5 {[%clk 0:02:51]}  Qd8 {[%clk 0:02:27]} 11. Bg5 {[%clk 0:02:25]}  Nbd7 {[%clk 0:02:27]} 12. e5 {[%clk 0:02:13]}  dxe5 {[%clk 0:02:24]} 13. Nxf6+ {[%clk 0:02:10]}  gxf6 {[%clk 0:02:18]} 14. Bxb7 {[%clk 0:02:09]}  fxg5 {[%clk 0:01:51]} 15. Nc6 {[%clk 0:01:59]}  Qc7 {[%clk 0:01:41]} 16. Bxa8 {[%clk 0:01:59]}  Nb6 {[%clk 0:01:39]} 17. Nxe5 {[%clk 0:01:55]}  Nxa8 {[%clk 0:01:38]} 18. a4 {[%clk 0:01:48]}  b4 {[%clk 0:01:34]} 19. a5 {[%clk 0:01:46]}  Bg7 {[%clk 0:01:34]} 20. Qe2 {[%clk 0:01:16]}  O-O {[%clk 0:01:32]} 21. Rad1 {[%clk 0:01:12]}  Rc8 {[%clk 0:01:28]} 22. Rd7 {[%clk 0:00:58]}  Qxa5 {[%clk 0:00:57]} 23. Nxf7 {[%clk 0:00:55]}  Nb6 {[%clk 0:00:25]} 24. Qxe6 {[%clk 0:00:50]} 1-0